fUSD/lending_fUSD_20240205
["ID","MTS","AMOUNT","RATE_DAILY","PERIOD"]
[313329397,1707161469424,-18755.18198034,0.00045,10]
[313329398,1707161469433,-11589.29,0.00045,4]
[313329399,1707161469442,-8932.18,0.00045,4]
[313329400,1707161469451,-789.0264754,0.00045,2]
[313329401,1707161469460,-1124.63383169,0.00045052,5]
[313329402,1707161469469,-1054.95999,0.00045082,30]
[313329403,1707161469479,-375.553869,0.00045082,30]
[313329404,1707161469489,-404.523067,0.00045082,30]
[313329405,1707161469498,-554.119252,0.00045082,30]
[313329406,1707161469507,-1000.0,0.00045111,30]
[313329407,1707161469516,-156.651,0.0004514,30]
[313329408,1707161469525,-331.82563408,0.00045197,5]
[313329409,1707161469534,-242.85775935,0.00045197,5]
[313329410,1707161469543,-65190.63420997,0.00045198,5]
[313329411,1707161469552,-500.0,0.0004522,30]
[313329412,1707161469561,-617.259203,0.0004523,30]
[313329413,1707161469570,-171.433406,0.00045267,30]
[313329414,1707161469579,-168.927798,0.00045267,30]
[313329415,1707161469588,-156.61,0.00045277,2]
[313329416,1707161469598,-455.0,0.000453,35]
[313329417,1707161469607,-2001.22,0.0004539,2]
[313329418,1707161469616,-354.06,0.0004542,2]
[313329419,1707161469625,-399.0,0.0004545,30]
[313329420,1707161469635,-500.0,0.00045479,7]
[313329421,1707161469643,-500.0,0.00045479,7]
[313329422,1707161469653,-579.22,0.00045479,7]
[313329423,1707161469662,-500.0,0.00045479,7]
[313329424,1707161469671,-524.88,0.00045479,7]
[313329425,1707161469680,-907.38,0.00045479,7]
[313329426,1707161469689,-793.66,0.00045479,7]
[313329427,1707161469698,-828.69,0.00045479,2]
[313329428,1707161469707,-500.0,0.00045479,20]
[313329429,1707161469715,-571.40604486,0.00045479,7]
[313329430,1707161469724,-760.42,0.00045479,7]
[313329431,1707161469734,-500.0,0.00045479,7]
[313329432,1707161469743,-500.0,0.00045479,7]
[313329433,1707161469753,-500.0,0.00045479,7]
[313329434,1707161469762,-500.0,0.00045479,7]
[313329435,1707161469770,-500.0,0.00045479,2]
[313329436,1707161469780,-1171.91,0.00045479,7]
[313329437,1707161469789,-626.85687348,0.00045479,7]
[313329438,1707161469798,-500.0,0.00045479,7]
[313329439,1707161469808,-1193.87,0.00045479,7]
[313329440,1707161469817,-579.7,0.00045479,7]
[313329441,1707161469826,-1047.76,0.00045479,7]
[313329442,1707161469837,-1195.13,0.00045479,7]
[313329443,1707161469846,-500.0,0.00045479,7]
[313329444,1707161469856,-968.9,0.00045479,7]
[313329445,1707161469865,-270.78151026,0.00045479,7]
[313329446,1707161469875,-500.0,0.00045479,7]
[313329447,1707161469884,-500.0,0.00045479,2]
[313329448,1707161469894,-500.0,0.00045479,7]
[313329449,1707161469904,-928.39,0.00045479,7]
[313329450,1707161469913,-500.0,0.00045479,7]
[313329451,1707161469923,-898.8,0.00045479,7]
[313329452,1707161469932,-1227.72,0.00045479,7]
[313329453,1707161469942,-500.0,0.00045479,7]
[313329454,1707161469951,-961.96,0.00045479,7]
[313329455,1707161469960,-856.15,0.00045479,7]
[313329456,1707161469970,-610.16,0.00045479,7]
[313329457,1707161469979,-500.0,0.00045479,7]
[313329458,1707161469992,-4208.35,0.00045479,7]
[313329459,1707161470001,-500.0,0.00045479,7]
[313329460,1707161470012,-500.0,0.00045479,7]
[313329461,1707161470022,-2424.94,0.00045479,7]
[313329462,1707161470033,-1147.57,0.00045479,7]
[313329463,1707161470042,-719.89,0.00045479,7]
[313329464,1707161470052,-872.38,0.00045479,7]
[313329465,1707161470061,-500.0,0.00045479,7]
[313329466,1707161470072,-500.0,0.00045479,7]
[313329467,1707161470083,-500.0,0.00045479,7]
[313329468,1707161470092,-3479.72,0.00045479,7]
[313329469,1707161470105,-524.2,0.00045479,7]
[313329470,1707161470115,-752.35,0.00045479,7]
[313329471,1707161470124,-500.0,0.00045479,7]
[313329472,1707161470134,-1792.12,0.00045479,7]
[313329473,1707161470144,-614.92,0.00045479,7]
[313329474,1707161470154,-689.61,0.00045479,7]
[313329475,1707161470163,-663.67,0.00045479,7]
[313329476,1707161470174,-1447.39,0.00045479,7]
[313329477,1707161470184,-500.0,0.00045479,7]
[313329478,1707161470194,-2445.56,0.00045479,7]
[313329479,1707161470205,-1389.3,0.00045479,7]
[313329480,1707161470215,-2095.64,0.00045479,7]
[313329481,1707161470225,-500.0,0.00045479,7]
[313329482,1707161470237,-500.0,0.00045479,7]
[313329483,1707161470251,-500.0,0.00045479,7]
[313329484,1707161470261,-1082.37,0.00045479,7]
[313329485,1707161470273,-2824.19,0.00045479,7]
[313329486,1707161470285,-1032.35,0.00045479,7]
[313329487,1707161470296,-903.41,0.00045479,7]
[313329488,1707161470307,-4354.94,0.00045479,7]
[313329489,1707161470319,-500.0,0.00045479,7]
[313329490,1707161470329,-551.54651001,0.00045479,7]
[313329491,1707161470340,-668.9,0.00045479,7]
[313329492,1707161470352,-607.08,0.00045479,7]
[313329493,1707161470364,-996.39,0.00045479,7]
[313329494,1707161470375,-500.0,0.00045479,7]
[313329495,1707161470385,-500.0,0.00045479,7]
[313329496,1707161470396,-568.52,0.00045479,7]
[313329497,1707161470409,-500.0,0.00045479,7]
[313329498,1707161470420,-2415.07,0.00045479,7]
[313329499,1707161470431,-1484.19,0.00045479,7]
[313329500,1707161470441,-831.07,0.00045479,7]
[313329501,1707161470452,-543.21,0.00045479,7]
[313329502,1707161470461,-3180.88,0.00045479,7]
[313329503,1707161470471,-784.02,0.00045479,7]
[313329504,1707161470482,-1184.54,0.00045479,7]
[313329505,1707161470496,-500.0,0.00045479,7]
[313329506,1707161470506,-1320.35,0.00045479,7]
[313329507,1707161470516,-520.58,0.00045479,7]
[313329508,1707161470526,-500.0,0.00045479,7]
[313329509,1707161470536,-595.8871895,0.00045479,7]
[313329510,1707161470545,-580.1,0.00045479,7]
[313329511,1707161470554,-727.02,0.00045479,7]
[313329512,1707161470565,-500.0,0.00045479,7]
[313329513,1707161470575,-648.1,0.00045479,7]
[313329514,1707161470585,-9649.71,0.00045479,7]
[313329515,1707161470595,-4246.7,0.00045479,7]
[313329516,1707161470605,-5144.37,0.00045479,7]
[313329517,1707161470615,-575.28,0.00045479,7]
[313329518,1707161470625,-531.93,0.00045479,7]
[313329519,1707161470634,-1687.02,0.00045479,7]
[313329520,1707161470645,-699.82,0.00045479,7]
[313329521,1707161470655,-828.59,0.00045479,7]
[313329522,1707161470665,-899.71,0.00045479,7]
[313329523,1707161470675,-536.09457879,0.00045479,7]
[313329524,1707161470686,-701.7,0.00045479,7]
[313329525,1707161470698,-500.0,0.00045479,7]
[313329526,1707161470709,-500.0,0.00045479,7]
[313329527,1707161470718,-1300.69,0.00045479,7]
[313329528,1707161470728,-830.8,0.00045479,7]
[313329529,1707161470740,-500.0,0.00045479,7]
[313329530,1707161470749,-530.48,0.00045479,7]
[313329531,1707161470758,-500.0,0.00045479,7]
[313329532,1707161470767,-500.0,0.00045479,2]
[313329533,1707161470776,-1935.78,0.00045479,7]
[313329534,1707161470786,-2018.2,0.00045479,7]
[313329535,1707161470795,-792.37,0.00045479,7]
[313329536,1707161470805,-1268.7,0.00045479,7]
[313329537,1707161470814,-610.86,0.00045479,7]
[313329538,1707161470823,-500.0,0.00045479,7]
[313329539,1707161470832,-500.0,0.00045479,7]
[313329540,1707161470843,-500.0,0.00045479,7]
[313329541,1707161470853,-500.0,0.00045479,7]
[313329542,1707161470863,-775.4,0.00045479,7]
[313329543,1707161470874,-650.59,0.00045479,7]
[313329544,1707161470883,-500.0,0.00045479,7]
[313329545,1707161470893,-1038.49,0.00045479,7]
[313329546,1707161470902,-917.32,0.00045479,7]
[313329547,1707161470912,-609.62,0.00045479,7]
[313329548,1707161470922,-332.6247449,0.00045479,7]
[313329549,1707161470932,-670.92,0.00045479,7]
[313329550,1707161470941,-1314.85,0.00045479,5]
[313329551,1707161470951,-1809.16,0.00045479,7]
[313329552,1707161470961,-1573.94,0.00045479,7]
[313329553,1707161470972,-1499.56,0.00045479,7]
[313329554,1707161470982,-834.46,0.00045479,7]
[313329555,1707161470993,-1580.41,0.00045479,7]
[313329556,1707161471003,-500.0,0.00045479,7]
[313329557,1707161471013,-500.0,0.00045479,7]
[313329558,1707161471023,-246.54170996,0.00045479,7]
[313329559,1707161471032,-500.0,0.00045479,7]
[313329560,1707161471042,-620.02927974,0.00045479,7]
[313329561,1707161471052,-1788.86,0.00045479,7]
[313329562,1707161471063,-665.49,0.00045479,7]
[313329563,1707161471074,-500.0,0.00045479,2]
[313329564,1707161471086,-500.0,0.00045479,7]
[313329565,1707161471097,-500.0,0.00045479,7]
[313329566,1707161471106,-6953.52,0.00045479,7]
[313329567,1707161471116,-594.23,0.00045479,7]
[313329568,1707161471126,-500.0,0.00045479,7]
[313329569,1707161471135,-643.79,0.00045479,7]
[313329570,1707161471145,-1787.48,0.00045479,7]
[313329571,1707161471155,-626.24,0.00045479,7]
[313329572,1707161471164,-1058.6,0.00045479,5]
[313329573,1707161471175,-12499.48,0.00045479,7]
[313329574,1707161471184,-1008.11,0.00045479,7]
[313329575,1707161471194,-410.45,0.00045479,2]
[313329576,1707161471204,-553.0,0.0004549,2]
[313329577,1707161471213,-437.0,0.0004549,2]
[313329578,1707161471224,-15204.3,0.000455,2]
[313329579,1707161471233,-37512.97,0.000455,30]
[313329580,1707161471355,-150.25,0.00045548,2]
[313329581,1707161471364,-150.0,0.0004563,30]
[313329582,1707161471374,-150.0,0.0004563,30]
[313329583,1707161471384,-1054.95999,0.00045639,30]
[313329584,1707161471393,-375.553869,0.00045639,30]
[313329585,1707161471403,-404.523067,0.00045639,30]
[313329586,1707161471412,-554.119252,0.00045639,30]
[313329587,1707161471422,-500.0,0.00045768,30]
[313329588,1707161471430,-617.259203,0.00045788,30]
[313329589,1707161471440,-455.0,0.000458,35]
[313329590,1707161471449,-10000.0,0.00045863,4]
[313329591,1707161471459,-510.79650009,0.0004588,100]
[313329592,1707161471468,-5800.0,0.00045959,7]
[313329593,1707161471476,-5800.0,0.00045968,7]
[313329594,1707161471485,-5800.0,0.00045976,7]
[313329595,1707161471496,-5800.0,0.00045984,7]
[313329596,1707161471505,-200.0,0.00045987,3]
[313329597,1707161471515,-200.0,0.00045987,7]
[313329598,1707161471527,-1683.0,0.0004599,2]
[313329599,1707161471538,-1331.0,0.0004599,2]
[313329600,1707161471547,-5800.0,0.00045993,7]
[313329601,1707161471556,-100000.0,0.00046,36]
[313329602,1707161471565,-751.86885441,0.00046,2]
[313329603,1707161471575,-5098.33227941,0.00046,21]
[313329604,1707161471584,-162.54733677,0.00046,4]
[313329605,1707161471594,-11000.0,0.00046,60]
[313329606,1707161471604,-4535.49264024,0.00046,60]
[313329607,1707161471613,-2000.0,0.00046,2]
[313329608,1707161471622,-4664.6842279,0.00046,30]
[313329609,1707161471632,-41177.53260614,0.00046,2]
[313329610,1707161471641,-2810.4,0.00046,7]
[313329611,1707161471650,-350.0,0.00046,65]
[313329612,1707161471659,-5800.0,0.00046002,7]
[313329613,1707161471668,-171.433406,0.0004601,30]
[313329614,1707161471677,-168.927798,0.0004601,30]
[313329615,1707161471686,-5800.0,0.0004601,7]
[313329616,1707161471695,-58000.0,0.00046018,5]
[313329617,1707161471705,-5800.0,0.00046019,7]
[313329618,1707161471715,-445.88817028,0.00046027,5]
[313329619,1707161471724,-5075.24458727,0.00046027,7]
[313329620,1707161471733,-58000.0,0.00046027,5]
[313329621,1707161471742,-5800.0,0.00046027,7]
[313329622,1707161471751,-500.0,0.00046027,7]
[313329623,1707161471761,-500.0,0.00046027,7]
[313329624,1707161471770,-579.22,0.00046027,7]
[313329625,1707161471780,-500.0,0.00046027,7]
[313329626,1707161471789,-524.88,0.00046027,7]
[313329627,1707161471798,-907.38,0.00046027,7]
[313329628,1707161471808,-793.66,0.00046027,7]
[313329629,1707161471817,-828.69,0.00046027,2]
[313329630,1707161471827,-500.0,0.00046027,20]
[313329631,1707161471836,-760.42,0.00046027,7]
[313329632,1707161471845,-500.0,0.00046027,7]
[313329633,1707161471855,-58000.0,0.00046027,5]
[313329634,1707161471865,-500.0,0.00046027,7]
[313329635,1707161471874,-374.8005564,0.00046027,7]
[313329636,1707161471883,-500.0,0.00046027,7]
[313329637,1707161471893,-500.0,0.00046027,2]
[313329638,1707161471902,-1171.91,0.00046027,7]
[313329639,1707161471911,-500.0,0.00046027,7]
[313329640,1707161471920,-1193.87,0.00046027,7]
[313329641,1707161471930,-579.7,0.00046027,7]
[313329642,1707161471939,-1047.76,0.00046027,7]
[313329643,1707161471948,-1195.13,0.00046027,7]
[313329644,1707161471958,-270.96794234,0.00046027,7]
[313329645,1707161471968,-968.9,0.00046027,7]
[313329646,1707161471977,-500.0,0.00046027,7]
[313329647,1707161471986,-500.0,0.00046027,2]
[313329648,1707161471996,-500.0,0.00046027,7]
[313329649,1707161472006,-928.39,0.00046027,7]
[313329650,1707161472015,-388.96049931,0.00046027,7]
[313329651,1707161472024,-898.8,0.00046027,7]
[313329652,1707161472034,-1227.72,0.00046027,7]
[313329653,1707161472044,-500.0,0.00046027,7]
[313329654,1707161472053,-961.96,0.00046027,7]
[313329655,1707161472062,-856.15,0.00046027,7]
[313329656,1707161472072,-500.0,0.00046027,7]
[313329657,1707161472081,-610.16,0.00046027,7]
[313329658,1707161472090,-500.0,0.00046027,7]
[313329659,1707161472102,-4208.35,0.00046027,7]
[313329660,1707161472111,-500.0,0.00046027,7]
[313329661,1707161472121,-500.0,0.00046027,7]
[313329662,1707161472131,-2424.94,0.00046027,7]
[313329663,1707161472142,-1147.57,0.00046027,7]
[313329664,1707161472151,-719.89,0.00046027,7]
[313329665,1707161472161,-872.38,0.00046027,7]
[313329666,1707161472172,-500.0,0.00046027,7]
[313329667,1707161472183,-500.0,0.00046027,7]
[313329668,1707161472193,-500.0,0.00046027,7]
[313329669,1707161472203,-3479.72,0.00046027,7]
[313329670,1707161472213,-524.2,0.00046027,7]
[313329671,1707161472222,-752.35,0.00046027,7]
[313329672,1707161472232,-500.0,0.00046027,7]
[313329673,1707161472243,-1792.12,0.00046027,7]
[313329674,1707161472252,-614.92,0.00046027,7]
[313329675,1707161472261,-689.61,0.00046027,7]
[313329676,1707161472271,-663.67,0.00046027,7]
[313329677,1707161472282,-1447.39,0.00046027,7]
[313329678,1707161472292,-500.0,0.00046027,7]
[313329679,1707161472302,-2445.56,0.00046027,7]
[313329680,1707161472313,-1389.3,0.00046027,7]
[313329681,1707161472323,-2095.64,0.00046027,7]
[313329682,1707161472333,-218.34842916,0.00046027,7]
[313329683,1707161472342,-500.0,0.00046027,7]
[313329684,1707161472352,-500.0,0.00046027,7]
[313329685,1707161472362,-1082.37,0.00046027,7]
[313329686,1707161472373,-2824.19,0.00046027,7]
[313329687,1707161472383,-1032.35,0.00046027,7]
[313329688,1707161472393,-903.41,0.00046027,7]
[313329689,1707161472403,-4354.94,0.00046027,7]
[313329690,1707161472413,-500.0,0.00046027,7]
[313329691,1707161472423,-668.9,0.00046027,7]
[313329692,1707161472433,-607.08,0.00046027,7]
[313329693,1707161472442,-996.39,0.00046027,7]
[313329694,1707161472452,-500.0,0.00046027,7]
[313329695,1707161472463,-500.0,0.00046027,7]
[313329696,1707161472473,-568.52,0.00046027,7]
[313329697,1707161472482,-500.0,0.00046027,7]
[313329698,1707161472493,-2415.07,0.00046027,7]
[313329699,1707161472503,-1484.19,0.00046027,7]
[313329700,1707161472512,-831.07,0.00046027,7]
[313329701,1707161472521,-543.21,0.00046027,7]
[313329702,1707161472530,-3180.88,0.00046027,7]
[313329703,1707161472540,-784.02,0.00046027,7]
[313329704,1707161472549,-1184.54,0.00046027,7]
[313329705,1707161472558,-500.0,0.00046027,7]
[313329706,1707161472568,-520.58,0.00046027,7]
[313329707,1707161472578,-1320.35,0.00046027,7]
[313329708,1707161472587,-500.0,0.00046027,7]
[313329709,1707161472597,-580.1,0.00046027,7]
[313329710,1707161472606,-727.02,0.00046027,7]
[313329711,1707161472617,-500.0,0.00046027,7]
[313329712,1707161472627,-648.1,0.00046027,7]
[313329713,1707161472637,-9649.71,0.00046027,7]
[313329714,1707161472646,-4246.7,0.00046027,7]
[313329715,1707161472655,-5144.37,0.00046027,7]
[313329716,1707161472665,-575.28,0.00046027,7]
[313329717,1707161472674,-531.93,0.00046027,7]
[313329718,1707161472684,-1687.02,0.00046027,7]
[313329719,1707161472695,-699.82,0.00046027,7]
[313329720,1707161472706,-828.59,0.00046027,7]
[313329721,1707161472716,-899.71,0.00046027,7]
[313329722,1707161472725,-701.7,0.00046027,7]
[313329723,1707161472736,-500.0,0.00046027,7]
[313329724,1707161472750,-500.0,0.00046027,7]
[313329725,1707161472761,-1300.69,0.00046027,7]
[313329726,1707161472772,-830.8,0.00046027,7]
[313329727,1707161472781,-530.48,0.00046027,7]
[313329728,1707161472791,-500.0,0.00046027,7]
[313329729,1707161472801,-500.0,0.00046027,7]
[313329730,1707161472811,-500.0,0.00046027,2]
[313329731,1707161472821,-1935.78,0.00046027,7]
[313329732,1707161472831,-2018.2,0.00046027,7]
[313329733,1707161472841,-792.37,0.00046027,7]
[313329734,1707161472850,-1268.7,0.00046027,7]
[313329735,1707161472860,-610.86,0.00046027,7]
[313329736,1707161472870,-500.0,0.00046027,7]
[313329737,1707161472880,-430.1390238,0.00046027,7]
[313329738,1707161472890,-500.0,0.00046027,7]
[313329739,1707161472900,-500.0,0.00046027,7]
[313329740,1707161472910,-775.4,0.00046027,7]
[313329741,1707161472919,-650.59,0.00046027,7]
[313329742,1707161472929,-500.0,0.00046027,7]
[313329743,1707161472939,-1038.49,0.00046027,7]
[313329744,1707161472949,-917.32,0.00046027,7]
[313329745,1707161472959,-609.62,0.00046027,7]
[313329746,1707161472968,-670.92,0.00046027,7]
[313329747,1707161472978,-1314.85,0.00046027,5]
[313329748,1707161472987,-1809.16,0.00046027,7]
[313329749,1707161473002,-1573.94,0.00046027,7]
[313329750,1707161473012,-834.46,0.00046027,7]
[313329751,1707161473021,-1499.56,0.00046027,7]
[313329752,1707161473030,-1580.41,0.00046027,7]
[313329753,1707161473040,-500.0,0.00046027,7]
[313329754,1707161473050,-500.0,0.00046027,7]
[313329755,1707161473059,-500.0,0.00046027,7]
[313329756,1707161473069,-1788.86,0.00046027,7]
[313329757,1707161473080,-665.49,0.00046027,7]
[313329758,1707161473090,-500.0,0.00046027,2]
[313329759,1707161473103,-500.0,0.00046027,7]
[313329760,1707161473112,-500.0,0.00046027,7]
[313329761,1707161473122,-6953.52,0.00046027,7]
[313329762,1707161473132,-594.23,0.00046027,7]
[313329763,1707161473142,-500.0,0.00046027,7]
[313329764,1707161473152,-643.79,0.00046027,7]
[313329765,1707161473161,-1787.48,0.00046027,7]
[313329766,1707161473171,-626.24,0.00046027,7]
[313329767,1707161473181,-1058.6,0.00046027,5]
[313329768,1707161473190,-12499.48,0.00046027,7]
[313329769,1707161473200,-1008.11,0.00046027,7]
[313329770,1707161473210,-1000.0,0.000461,2]
[313329771,1707161473219,-1000.0,0.00046116,30]
[313329772,1707161473229,-1054.95999,0.00046195,30]
[313329773,1707161473239,-375.553869,0.00046195,30]
[313329774,1707161473249,-404.523067,0.00046195,30]
[313329775,1707161473258,-554.119252,0.00046195,30]
[313329776,1707161473268,-5000.0,0.00046291,4]
[313329777,1707161473277,-455.0,0.000463,36]
[313329778,1707161473288,-500.0,0.00046316,30]
[313329779,1707161473298,-395.38392568,0.00046325,8]
[313329780,1707161473307,-617.259203,0.00046346,30]
[313329781,1707161473317,-206.0,0.00046434,37]
[313329782,1707161473327,-1000.0,0.00046443,30]
[313329783,1707161473337,-1000.0,0.00046443,30]
[313329784,1707161473346,-1000.0,0.00046443,30]
[313329785,1707161473355,-1000.0,0.00046443,30]
[313329786,1707161473365,-452.0,0.0004649,2]
[313329787,1707161473376,-357.0,0.0004649,2]
[313329788,1707161473386,-9378.24,0.000465,2]
[313329789,1707161473395,-399.0,0.000465,30]
[313329790,1707161473405,-1000.0,0.00046561,30]
[313329791,1707161473414,-242.85775935,0.00046574,6]
[313329792,1707161473424,-331.82563408,0.00046574,6]
[313329793,1707161473433,-500.0,0.00046575,31]
[313329794,1707161473443,-500.0,0.00046575,31]
[313329795,1707161473452,-579.22,0.00046575,31]
[313329796,1707161473461,-500.0,0.00046575,31]
[313329797,1707161473471,-524.88,0.00046575,31]
[313329798,1707161473480,-907.38,0.00046575,31]
[313329799,1707161473491,-793.66,0.00046575,31]
[313329800,1707161473500,-450.0,0.00046575,2]
[313329801,1707161473618,-828.69,0.00046575,2]
[313329802,1707161473628,-634.77660205,0.00046575,7]
[313329803,1707161473638,-500.0,0.00046575,20]
[313329804,1707161473647,-760.42,0.00046575,31]
[313329805,1707161473657,-500.0,0.00046575,31]
[313329806,1707161473666,-500.0,0.00046575,31]
[313329807,1707161473676,-500.0,0.00046575,60]
[313329808,1707161473686,-500.0,0.00046575,31]
[313329809,1707161473696,-500.0,0.00046575,2]
[313329810,1707161473706,-1171.91,0.00046575,31]
[313329811,1707161473715,-1000.0,0.00046575,31]
[313329812,1707161473724,-1000.0,0.00046575,31]
[313329813,1707161473733,-1000.0,0.00046575,31]
[313329814,1707161473744,-1000.0,0.00046575,31]
[313329815,1707161473753,-249.89004829,0.00046575,31]
[313329816,1707161473762,-500.0,0.00046575,31]
[313329817,1707161473771,-1193.87,0.00046575,31]
[313329818,1707161473781,-579.7,0.00046575,31]
[313329819,1707161473790,-1047.76,0.00046575,31]
[313329820,1707161473799,-1000.0,0.00046575,31]
[313329821,1707161473808,-1000.0,0.00046575,31]
[313329822,1707161473817,-1000.0,0.00046575,31]
[313329823,1707161473826,-1000.0,0.00046575,31]
[313329824,1707161473836,-1000.0,0.00046575,31]
[313329825,1707161473846,-1000.0,0.00046575,31]
[313329826,1707161473855,-1000.0,0.00046575,31]
[313329827,1707161473865,-1000.0,0.00046575,31]
[313329828,1707161473874,-1000.0,0.00046575,31]
[313329829,1707161473883,-1000.0,0.00046575,31]
[313329830,1707161473892,-1000.0,0.00046575,31]
[313329831,1707161473901,-1195.13,0.00046575,31]
[313329832,1707161473910,-968.9,0.00046575,31]
[313329833,1707161473920,-500.0,0.00046575,31]
[313329834,1707161473929,-500.0,0.00046575,2]
[313329835,1707161473938,-1000.0,0.00046575,40]
[313329836,1707161473948,-500.0,0.00046575,31]
[313329837,1707161473958,-928.39,0.00046575,31]
[313329838,1707161473967,-898.8,0.00046575,31]
[313329839,1707161473977,-1227.72,0.00046575,31]
[313329840,1707161473987,-500.0,0.00046575,31]
[313329841,1707161473997,-961.96,0.00046575,31]
[313329842,1707161474007,-856.15,0.00046575,31]
[313329843,1707161474017,-500.0,0.00046575,31]
[313329844,1707161474027,-610.16,0.00046575,31]
[313329845,1707161474037,-500.0,0.00046575,31]
[313329846,1707161474047,-4208.35,0.00046575,31]
[313329847,1707161474056,-500.0,0.00046575,31]
[313329848,1707161474066,-500.0,0.00046575,31]
[313329849,1707161474076,-2424.94,0.00046575,31]
[313329850,1707161474088,-1147.57,0.00046575,31]
[313329851,1707161474098,-719.89,0.00046575,31]
[313329852,1707161474107,-872.38,0.00046575,31]
[313329853,1707161474117,-500.0,0.00046575,31]
[313329854,1707161474126,-500.0,0.00046575,31]
[313329855,1707161474136,-500.0,0.00046575,31]
[313329856,1707161474145,-3479.72,0.00046575,31]
[313329857,1707161474154,-524.2,0.00046575,31]
[313329858,1707161474162,-752.35,0.00046575,31]
[313329859,1707161474171,-500.0,0.00046575,31]
[313329860,1707161474183,-1792.12,0.00046575,7]
[313329861,1707161474192,-614.92,0.00046575,31]
[313329862,1707161474202,-689.61,0.00046575,31]
[313329863,1707161474211,-663.67,0.00046575,31]
[313329864,1707161474220,-229.15194969,0.00046575,120]
[313329865,1707161474230,-1447.39,0.00046575,31]
[313329866,1707161474239,-500.0,0.00046575,31]
[313329867,1707161474249,-2445.56,0.00046575,31]
[313329868,1707161474258,-1389.3,0.00046575,31]
[313329869,1707161474268,-2095.64,0.00046575,31]
[313329870,1707161474277,-500.0,0.00046575,31]
[313329871,1707161474287,-571.16792427,0.00046575,31]
[313329872,1707161474297,-1082.37,0.00046575,31]
[313329873,1707161474307,-2824.19,0.00046575,31]
[313329874,1707161474316,-903.41,0.00046575,31]
[313329875,1707161474326,-1032.35,0.00046575,31]
[313329876,1707161474335,-4354.94,0.00046575,31]
[313329877,1707161474344,-500.0,0.00046575,31]
[313329878,1707161474354,-668.9,0.00046575,31]
[313329879,1707161474363,-607.08,0.00046575,31]
[313329880,1707161474373,-996.39,0.00046575,31]
[313329881,1707161474382,-500.0,0.00046575,31]
[313329882,1707161474392,-500.0,0.00046575,31]
[313329883,1707161474402,-568.52,0.00046575,31]
[313329884,1707161474411,-500.0,0.00046575,31]
[313329885,1707161474421,-2415.07,0.00046575,31]
[313329886,1707161474432,-183.30459914,0.00046575,30]
[313329887,1707161474441,-1484.19,0.00046575,31]
[313329888,1707161474452,-831.07,0.00046575,31]
[313329889,1707161474461,-543.21,0.00046575,31]
[313329890,1707161474470,-3180.88,0.00046575,31]
[313329891,1707161474478,-784.02,0.00046575,31]
[313329892,1707161474487,-1184.54,0.00046575,31]
[313329893,1707161474498,-500.0,0.00046575,31]
[313329894,1707161474508,-520.58,0.00046575,31]
[313329895,1707161474517,-1320.35,0.00046575,31]
[313329896,1707161474527,-500.0,0.00046575,31]